Cogmind - Beta 17 @@@ ROGUE MODE // 2026.07.12 @ 19:31:06 Player: Toddbert Result: Destroyed by S-10 Pest with Light Assault Rifle Performance ------------- Evolutions (0) 0 Regions Visited (1) 200 Robots Destroyed (8) 40 Value Destroyed (128) 128 Prototype IDs (0) 0 Alien Tech Used (0) 0 Bonus (0) 0 TOTAL SCORE: 368 Bonus ------- None Cogmind --------- Core Integrity 0/250 Matter 300/300 Energy 100/100 System Corruption 0% Temperature Cool (0) Movement Core (350) Ox6 Location -10/Materials Parts ------- > --- POWER (1) -------- (None) > --- PROPULSION (2) --- (None) > --- UTILITY (2) ------ Large Storage Unit > --- WEAPON (2) ------- (None) > --- INVENTORY (15) --- Light Ion Engine Light Ion Engine Light Ion Engine Aluminum Leg Aluminum Leg Beam Cannon Light Assault Rifle Light Assault Rifle Peak State ------------ > --- POWER ------------ Ion Engine > --- PROPULSION ------- Light Treads Light Treads > --- UTILITY ---------- Small Storage Unit Large Storage Unit > --- WEAPON ----------- Light Assault Rifle Light Assault Rifle > --- INVENTORY -------- Light Ion Engine Light Ion Engine Light Ion Engine Aluminum Leg Aluminum Leg Beam Cannon Light Assault Rifle Light Assault Rifle [Rating: 7] Favorites ----------- Power Ion Engine Engine Ion Engine Propulsion Light Treads Treads Light Treads Utility Large Storage Unit Device Heat Sink Storage Large Storage Unit Weapon Light Assault Rifle Ballistic Gun Light Assault Rifle Build | -11 -10 ------- Run | Yrd Mat Slots Evolved . | . . Power . | . . Propulsion . | . . Utility . | . . Weapon . | . . Parts Attached 8 | 6 2 Power 1 | 1 . Engine 1 | 1 . Core . | . . Reactor . | . . Propulsion 2 | 2 . Treads 2 | 2 . Leg . | . . Wheel . | . . Hover . | . . Flight . | . . Utility 3 | 1 2 Device 1 | . 1 Storage 2 | 1 1 Processor . | . . Hackware . | . . Protection . | . . Artifact . | . . Weapon 2 | 2 . Energy Gun . | . . Energy Cannon . | . . Ballistic Gun 2 | 2 . Ballistic Cannon . | . . Launcher . | . . Special Weapon . | . . Impact Weapon . | . . Slashing Weapon . | . . Piercing Weapon . | . . Special Melee Weapon . | . . Unidentified Prototypes . | . . Parts Lost 6 | . 6 Power 1 | . 1 Propulsion 2 | . 2 Utility 1 | . 1 Weapon 2 | . 2 Highest Loss Streak 6 | . 6 To Critical Strikes . | . . Average Backups 5 | 1 6 Power 2 | . 2 Propulsion 1 | 1 2 Utility . | . . Weapon 1 | . 2 Tool/Special . | . . Unused Backups 9 | . 9 Power 3 | . 3 Propulsion 2 | . 2 Utility . | . . Weapon 4 | . 4 Tool/Special . | . . Average Slot Usage (%) 90 | . 90 Engine 12 | . 12 Treads 26 | . 26 Device 8 | . 8 Storage 14 | . 14 Ballistic Gun 26 | . 26 Peak Build Rating 7 | 6 7 Average Rating 6 | 5 6 On Entrance 3 | . 6 Avg Prop Armor Cover (%) . | . . Naked Turns . | . . Heaviest Build 28 | 12 28 Greatest Support 40 | 40 40 Greatest Overweight (x) 7 | 1 7 Average Overweight (x) . | . . Largest Inventory Capacity 15 | 8 15 Average Capacity 11 | 7 12 Most Carried 9 | 3 9 Average Carried 5 | 1 6 Final Capacity 15 | 8 15 Final Carried 8 | 3 8 Class Distribution -------------------- 100% | Mutant Dominant Class ---------------- Mutant | -10/Materials Resources | -11 -10 ----------- Run | Yrd Mat Matter Collected 304 | 182 122 Remotely . | . . Salvage Created 170 | . 170 Parts 17 | . 17 Haulers Intercepted . | . . Recyclers Shooed . | . . Parts Field Recycled . | . . Retrieved Matter . | . . Parts Self-Destructed . | . . Prevented . | . . Parts Restored . | . . Kills | -11 -10 ------- Run | Yrd Mat Combat Hostiles Destroyed 8 | . 8 Guns 8 | . 8 Classes Destroyed 2 | . 2 Swarmer 6 | . 6 Grunt 2 | . 2 Best Kill Streak 5 | . 5 Combat Bots Only 5 | . 5 Max Kills in Single Turn 2 | . 2 Gunslinging 1 | . 1 Exploded . | . . Melee . | . . Uniques/NPCs Destroyed . | . . Combat | -11 -10 -------- Run | Yrd Mat Hostile Shots Fired 137 | . 137 Missed 41 | . 41 Hits 96 | . 96 Projectile 96 | . 96 Damage Taken 884 | . 884 Core 251 | . 251 Absorbed by Shields . | . . Core Remaining (%) 100 | 100 . Volleys Fired 23 | . 23 Largest 2 | . 2 Hottest 40 | . 40 Shots Fired 46 | . 46 Gun 46 | . 46 Cannon . | . . Launcher . | . . Special . | . . Kinetic 46 | . 46 Thermal . | . . Explosive . | . . Electromagnetic . | . . Robot Hit Streak 5 | . 5 Robot Miss Streak 5 | . 5 Penetration Max . | . . Secondary Targets 2 | . 2 Max Gunslinging Chain 1 | . 1 Shots Hit Robots 24 | . 24 Core Hits 13 | . 13 Critical Kills . | . . Critical Parts Destroyed . | . . Critical Strikes . | . . Melee Attacks . | . . Impact . | . . Slashing . | . . Piercing . | . . Sneak Attacks . | . . Combat Hostiles . | . . Follow-up Attacks . | . . Damage Inflicted 222 | 5 217 Guns 217 | . 217 Cannons . | . . Explosions . | . . Melee . | . . Ramming 5 | 5 . Kinetic 217 | . 217 Thermal . | . . Explosive . | . . Electromagnetic . | . . Impact . | . . Slashing . | . . Piercing . | . . Highest Corruption . | . . Average Corruption . | . . Corruption Purged . | . . Corruption Blocked . | . . Overload Shots . | . . Overflow Damage . | . . Projectiles . | . . Explosions . | . . Melee . | . . Knockbacks . | . . Impact . | . . Kinetic . | . . Secondary . | . . Self-Inflicted Damage . | . . Shots . | . . Rammed 4 | 3 1 Targets Rammed 4 | 3 1 Kicked . | . . Crushed . | . . Highest Temperature . | . . Average Temperature . | . . Received Heat Transfer 189 | . 189 Siege Activations . | . . Martial Activations . | . . Shielding Activations . | . . Robots Disrupted . | . . Combat Hostiles . | . . Robots Corrupted . | . . Combat Hostiles . | . . Parts Fried . | . . Impact Corruptions . | . . Robots Melted . | . . Combat Hostiles . | . . Parts Melted . | . . Heat Transferred . | . . Parts Sabotaged . | . . Parts Stolen . | . . Parts Stripped . | . . Power Chain Reactions . | . . Alert | -11 -10 ------- Run | Yrd Mat Maximum Alert Level . | . . Low Security (%) 100 | 100 100 Level 1 . | . . Level 2 . | . . Level 3 . | . . Level 4 . | . . Level 5 . | . . High Security . | . . Max Security . | . . Peak Influence 100 | . 100 Initial . | . . Average 24 | . 31 Influence Increases 190 | . 190 Destroy 0b10 Robot/C 160 | . 160 Destroy Leader 30 | . 30 Influence Decreases 190 | . 190 Time Decay 168 | . 168 Lost Part 22 | . 22 Squads Dispatched 1 | . 1 Investigation . | . . Extermination . | . . Reinforcement 1 | . 1 Assault . | . . Garrison . | . . Intercept . | . . Searches Triggered . | . . Construction Impeded . | . . Haulers Reinforced . | . . Active Scanning Responses . | . . Cargo Convoy Interrupts . | . . Stealth | -11 -10 --------- Run | Yrd Mat Distress Signals 2 | . 2 Communications Jammed . | . . Distress Signals . | . . Times Spotted 16 | . 16 Peak Tracking Total 7 | . 7 Tactical Retreats . | . . Traps | -11 -10 ------- Run | Yrd Mat Traps Triggered . | . . Indirectly . | . . Trap Hack Attempts . | . . Triggered . | . . Disarmed . | . . Reprogrammed . | . . Reused . | . . Traps Extracted . | . . Installed . | . . Triggered . | . . Machines | -11 -10 ---------- Run | Yrd Mat Machines Disabled . | . . Max in Single Turn . | . . Machines Repaired . | . . Machines Dismantled . | . . Machines Sabotaged . | . . Overloaded Fab Kills . | . . Hacking | -11 -10 --------- Run | Yrd Mat Machines Accessed 1 | . 1 Terminals . | . . Fabricators . | . . Repair Stations . | . . Recycling Units 1 | . 1 Scanalyzers . | . . Garrison Access . | . . Total Hacks 1 | . 1 Successful 1 | . 1 Failed . | . . Catastrophic . | . . Database Lockouts . | . . Manual 2 | . 2 Terminals . | . . Fabricators . | . . Repair Stations . | . . Recycling Units 1 | . 1 Scanalyzers . | . . Garrison Access . | . . Terminal Hacks . | . . Fabricator Hacks . | . . Repair Station Hacks . | . . Recycling Unit Hacks 1 | . 1 Retrieve Matter 1 | . 1 Scanalyzer . | . . Garrison Access Hacks . | . . Unauthorized Hacks . | . . Terminals . | . . Fabricators . | . . Repair Stations . | . . Recycling Units . | . . Scanalyzers . | . . Garrison Access . | . . Data Cores Recovered . | . . Used . | . . Hacking Detections . | . . Full Trace Events . | . . Feedback Events . | . . Feedback Blocked . | . . Robot Schematics Acquired . | . . Robots Built . | . . Authchips . | . . Time . | . . Total Robot Build Rating . | . . Part Schematics Acquired . | . . Parts Built . | . . Authchips . | . . Time . | . . Total Part Build Rating . | . . Part Studies Acquired . | . . Parts Repaired . | . . Time . | . . Parts Recycled . | . . Recycled Matter . | . . Retrieved Matter . | . . Retrieved Components . | . . Parts Scanalyzed . | . . Part Schematics Acquired . | . . Parts Damaged . | . . Bothacking | -11 -10 ------------ Run | Yrd Mat Used RIF Installer . | . . Robots Hacked . | . . Non-combat . | . . Combat . | . . Robot Hacks Applied . | . . Relay Couplers Released . | . . Fabnet Peak Effective % . | . . Robots Rewired . | . . Allies Hacked . | . . Hacks Repelled . | . . Allies | -11 -10 -------- Run | Yrd Mat Total Allies . | . . Largest Group . | . . Highest-Rated Group . | . . Highest-Rated Ally . | . . Total Orders . | . . Ally Attacks . | . . Total Damage . | . . Kills . | . . Allies Corrupted . | . . Allies Melted . | . . Intel | -11 -10 ------- Run | Yrd Mat Active Infowar (turns) . | . . Robot Analysis Total . | . . Derelict Logs Recovered . | . . Drone Launches . | . . Drone Recoveries . | . . Exploration | -11 -10 ------------- Run | Yrd Mat Turns Passed 614 | 149 465 Spaces Moved 326 | 88 238 Core 15 | 9 6 Treads 311 | 79 232 Legs . | . . Wheels . | . . Hover . | . . Flight . | . . Fastest Speed 50 | 50 160 Average Speed 161 | 151 166 Slowest Speed 400 | 160 400 Overloaded Moves . | . . Propulsion Burnouts . | . . Robots Hopped . | . . Potential Cave-ins . | . . Cave-ins Triggered . | . . Exploration Rate (%) 19 | 4 34 Regions Visited 1 Branch Regions . Pre-discovered Areas . | . . Known Exits Taken . | . . Unknown Exits Taken 1 | 1 . Scrap Searched . | . . Spaces Dug . | . . Terrain Destroyed . | . . Melee . | . . Projectile . | . . AOE . | . . Terrain Rammed . | . . Walls Destroyed . | . . Machines Disabled . | . . Actions | -11 -10 --------- Run | Yrd Mat Total 372 | 99 273 Wait . | . . Move 325 | 87 238 Hop . | . . Pick Up 9 | 3 6 Fast Attach 8 | 6 2 Attach . | . . Detach 1 | . 1 Swap . | . . Drop 2 | . 2 Fire 23 | . 23 Melee . | . . Ram . | . . Kick . | . . Crush 4 | 3 1 Escape Stasis . | . . Rewire . | . . Trap . | . . Miscellaneous . | . . Route ------- -11/Scrapyard -10/Materials (discovered 1 exit: [*Mat]) History --------- Turn | Location | Event 7 | -11/Scrapyard | Discovered new exit (range 16) 150 | -11/Scrapyard | Entered Materials 323 | -10/Materials | Build established: Mutant 493 | -10/Materials | Discovered new exit (range 13) 601 | -10/Materials | Core integrity fell below 50% 612 | -10/Materials | Core integrity fell below 20% 615 | -10/Materials | Destroyed by S-10 Pest with Light Assault Rifle Last Messages --------------- Dropped Sml. Storage Unit. Acquired 15 matter. Acquired 14 matter. Connecting with Recycling Unit... K-01 Serf collects debris. G-34 Mercenary destroyed. Acquired 39 matter. K-01 Serf collects debris. EXIT=FOUND W-16 Scout sends out distress signal. S-10 Pest destroyed. W-16 Scout sends out distress signal. Ion Engine destroyed. ALERT: Hostiles spotted, dispatching reinforcements to Terminal M006. Lgt. Assault Rifle destroyed. Slammed into W-16 Scout. Lgt. Treads destroyed. Heat Sink destroyed. Lgt. Assault Rifle destroyed. Map ----- +----------------------------------------------------+ | ?????????????????????????????????????????????????? | | ?????????????????????????????????????????????????? | | ?????????????????????????????????????????????????? | | ?????????????????????????????????#+#?????????????? | | ????????????????????????????????# ?????????????? | | ????? ????????????????????????# ?????????????? | | ????# ????????????????????????+ ?????????????? | | ????# ????????????????????????# ?????????????? | | ????# #???????????????????????# ?????????????? | | ????# #???????????????????????# ?????????????? | | ????# #??????????############## ####?????????? | | ????# #??????????# / #T"#?????????? | | ????# #??????????#"" """ """ # # "#####?????? | | ????# #???????????"T """ """ #*% ??????? | | ????+ +????????????? """ """?? ????????? | | ????# #??????????????? ????? ?????????? | | ????# #??????????#+#???#+#?????? ???????????? | | ##### #??????????# #??## ########+##???????????? | | #??????????# #??# % / #???????????? | | ############ #??# s### #???????????? | | + + #??#sg #?# """ #???????????? | | =%!### """ # #??# #?# """ #???????????? | | ###/#### """ # #### #?# """ #???????????? | | # [ ## """ # #?# #???????????? | | =# ]## + ####+#####???????????? | | %+! ## """ # a @ # #?????????????? | | =# ## """ ###### # """ #?????????????? | | # """ ## """ #????# # """ #?????????????? | | ! + """ ## #????# gg# """ #?????????????? | | # """ ###########????# + #?????????????? | | # #??????????????# # """ #?????????????? | | # """ #??????????????# # """ #?????????????? | | # """ #??????????????# # """ #?????????????? | | # "?? #??????????????# # [#?????????????? | | # ??????????????????# # """ #?????????????? | | ###??????????????????# # """ #?????????????? | | #????????????????????# < # """ #?????????????? | | #????????????????????# # ??????????????????? | | ##???????????????????#######??????????????????? | | T#????????????????????????????????????????????? | | ##????????????????????????????????????????????? | | = #?????????????????????????????????????????????? | | #?????????????????????????????????????????????? | | ####?????????????????????????????????????????????? | | ?????????????????????????????????????????????????? | | ?????????????????????????????????????????????????? | | ?????????????????????????????????????????????????? | | ?????????????????????????????????????????????????? | | | | | +----------------------------------------------------+ Best States ------------- Heat Dissipation 35 Energy Generation 10 Energy Capacity 250 Matter Stores 300 Matter Capacity 300 Sight Range 16 Terrain Scan Density 10 Evasion (%) 40 Recoil Reduction 2 Item Schematics ----------------- None Robot Schematics ------------------ None Fabricated ------------ Nothing Repaired ---------- Nothing Studied --------- None Alien Tech Used ----------------- None Achievements -------------- None Challenges ------------ None Game ------ Seed MachineTerrainArticulator Manual? 0 Play Time 00:08:32 Cumulative 10.5 hours Start 2026.07.12 @ 14:51:28 End 2026.07.12 @ 19:31:06 Sessions 3 Manual Loads 0 Difficulty Rogue Special Mode None Game No. 30 Rogue 30 Adventurer 0 Explorer 0 Win Type - Total 0 Types 0/0/0/0/0/0/0/0/0/0 Lore% 11 Gallery% 9 Achievement% 10 Wizard Run 0 Options --------- Layout 1 ASCII 1 Keyboard 0 Movement Arrows Keybinds 0 Fullscreen 1 Font 24/Smallcaps Map View 50x40 Zoom Use 0% Tactical HUD 0 Map Filters NONE Filters NONE Steam 1 RUN: c7426bb0-f835-4d14-9051-53019461c59e